fUSD/lending_fUSD_20250111
["ID","MTS","AMOUNT","RATE_DAILY","PERIOD"]
[348478033,1736557844843,-500.0,0.00010271,2]
[348478034,1736557844853,-500.0,0.00010271,2]
[348478035,1736557844862,-1316.67,0.00010271,2]
[348478036,1736557844872,-1455.0,0.00010273,2]
[348478037,1736557844882,-289.82800921,0.00010273,2]
[348478038,1736557844891,-500.0,0.00010273,2]
[348478039,1736557844901,-432.08145084,0.00010273,2]
[348478040,1736557844910,-525.15,0.00010273,2]
[348478041,1736557844919,-500.0,0.00010273,2]
[348478042,1736557844929,-500.0,0.00010273,2]
[348478043,1736557844938,-500.0,0.00010273,2]
[348478044,1736557844948,-500.0,0.00010273,2]
[348478045,1736557844958,-500.0,0.00010273,2]
[348478046,1736557844967,-500.0,0.00010273,2]
[348478047,1736557844976,-500.0,0.00010273,2]
[348478048,1736557844985,-620.65688888,0.00010273,2]
[348478049,1736557844994,-500.0,0.00010273,2]
[348478050,1736557845003,-500.0,0.00010273,2]
[348478051,1736557845012,-224.3347869,0.00010273,2]
[348478052,1736557845022,-500.0,0.00010273,2]
[348478053,1736557845032,-500.0,0.00010273,2]
[348478054,1736557845042,-500.0,0.00010273,2]
[348478055,1736557845051,-500.0,0.00010273,2]
[348478056,1736557845060,-500.0,0.00010273,2]
[348478057,1736557845071,-500.0,0.00010273,2]
[348478058,1736557845080,-500.0,0.00010273,2]
[348478059,1736557845090,-500.0,0.00010273,2]
[348478060,1736557845099,-2541.25,0.00010273,2]
[348478061,1736557845108,-512.94,0.00010273,2]
[348478062,1736557845117,-500.0,0.00010273,2]
[348478063,1736557845127,-529.15,0.00010273,2]
[348478064,1736557845136,-546.84,0.00010273,2]
[348478065,1736557845145,-500.0,0.00010273,2]
[348478066,1736557845154,-500.0,0.00010273,2]
[348478067,1736557845163,-564.22,0.00010273,2]
[348478068,1736557845172,-988.02,0.00010273,2]
[348478069,1736557845182,-500.0,0.00010273,2]
[348478070,1736557845191,-663.69,0.00010273,2]
[348478071,1736557845200,-664.28,0.00010273,2]
[348478072,1736557845210,-500.0,0.00010273,2]
[348478073,1736557845219,-500.0,0.00010273,2]
[348478074,1736557845228,-500.0,0.00010273,2]
[348478075,1736557845237,-1003.07,0.00010273,2]
[348478076,1736557845246,-631.4,0.00010273,2]
[348478077,1736557845255,-500.0,0.00010273,2]
[348478078,1736557845265,-500.0,0.00010273,2]
[348478079,1736557845276,-603.77,0.00010273,2]
[348478080,1736557845285,-500.0,0.00010273,2]
[348478081,1736557845294,-717.92,0.00010273,2]
[348478082,1736557845304,-500.0,0.00010273,2]
[348478083,1736557845314,-500.0,0.00010273,2]
[348478084,1736557845323,-500.0,0.00010273,2]
[348478085,1736557845333,-500.0,0.00010273,2]
[348478086,1736557845342,-500.0,0.00010273,2]
[348478087,1736557845351,-500.0,0.00010273,2]
[348478088,1736557845362,-500.0,0.00010273,2]
[348478089,1736557845371,-558.16,0.00010273,2]
[348478090,1736557845381,-500.0,0.00010273,2]
[348478091,1736557845390,-500.0,0.00010273,2]
[348478092,1736557845399,-500.0,0.00010273,2]
[348478093,1736557845408,-1450.58,0.00010273,2]
[348478094,1736557845417,-500.0,0.00010273,2]
[348478095,1736557845427,-500.0,0.00010273,2]
[348478096,1736557845436,-500.0,0.00010273,2]
[348478097,1736557845445,-500.0,0.00010273,2]
[348478098,1736557845456,-2637.97,0.00010273,2]
[348478099,1736557845466,-500.0,0.00010273,2]
[348478100,1736557845475,-360.98345333,0.00010273,2]
[348478101,1736557845486,-500.0,0.00010273,2]
[348478102,1736557845501,-500.0,0.00010273,2]
[348478103,1736557845511,-500.0,0.00010273,2]
[348478104,1736557845521,-939.56,0.00010273,2]
[348478105,1736557845531,-500.0,0.00010273,2]
[348478106,1736557845543,-500.0,0.00010273,2]
[348478107,1736557845554,-500.0,0.00010273,2]
[348478108,1736557845565,-500.0,0.00010273,2]
[348478109,1736557845576,-742.24,0.00010273,2]
[348478110,1736557845586,-882.41,0.00010273,2]
[348478111,1736557845597,-502.54,0.00010273,2]
[348478112,1736557845606,-500.0,0.00010273,2]
[348478113,1736557845615,-500.0,0.00010273,2]
[348478114,1736557845624,-1328.54,0.00010273,2]
[348478115,1736557845634,-500.0,0.00010273,2]
[348478116,1736557845643,-500.0,0.00010273,2]
[348478117,1736557845652,-521.61,0.00010273,2]
[348478118,1736557845662,-570.23,0.00010273,2]
[348478119,1736557845671,-669.9,0.00010273,2]
[348478120,1736557845680,-500.0,0.00010273,2]
[348478121,1736557845690,-500.0,0.00010273,2]
[348478122,1736557845700,-500.0,0.00010273,2]
[348478123,1736557845709,-1727.8,0.00010273,2]
[348478124,1736557845719,-832.85,0.00010273,2]
[348478125,1736557845729,-500.0,0.00010273,2]
[348478126,1736557845739,-500.0,0.00010273,2]
[348478127,1736557845748,-3854.35,0.00010273,2]
[348478128,1736557845758,-500.0,0.00010273,2]
[348478129,1736557845768,-500.0,0.00010273,2]
[348478130,1736557845778,-500.0,0.00010273,2]
[348478131,1736557845787,-500.0,0.00010273,2]
[348478133,1736557845796,-500.0,0.00010273,2]
[348478134,1736557845806,-500.0,0.00010273,2]
[348478136,1736557845815,-500.0,0.00010273,2]
[348478138,1736557845825,-500.0,0.00010273,2]
[348478140,1736557845834,-500.0,0.00010273,2]
[348478142,1736557845843,-500.0,0.00010273,2]
[348478144,1736557845852,-524.62,0.00010273,2]
[348478146,1736557845862,-514.69,0.00010273,2]
[348478149,1736557845872,-778.85,0.00010273,2]
[348478151,1736557845881,-500.0,0.00010273,2]
[348478153,1736557845891,-500.0,0.00010273,2]
[348478155,1736557845900,-1177.86,0.00010273,2]
[348478157,1736557845910,-1099.04,0.00010273,2]
[348478159,1736557845919,-500.0,0.00010273,2]
[348478162,1736557845930,-1535.8,0.00010273,2]
[348478165,1736557845939,-500.0,0.00010273,2]
[348478168,1736557845948,-2814.65,0.00010273,2]
[348478171,1736557845958,-500.0,0.00010273,2]
[348478174,1736557845967,-961.8,0.00010273,2]
[348478176,1736557845976,-719.2,0.00010273,2]
[348478178,1736557845985,-1194.13,0.00010273,2]
[348478180,1736557845995,-500.0,0.00010273,2]
[348478182,1736557846005,-1091.95,0.00010273,2]
[348478184,1736557846015,-2542.34,0.00010273,2]
[348478186,1736557846024,-284.98,0.00010273,2]
[348478188,1736557846033,-500.0,0.00010273,2]
[348478190,1736557846043,-500.0,0.00010273,2]
[348478192,1736557846053,-750.07,0.00010273,2]
[348478194,1736557846063,-1945.88,0.00010273,2]
[348478196,1736557846073,-500.0,0.00010273,2]
[348478198,1736557846083,-2417.55,0.00010273,2]
[348478200,1736557846092,-1209.3,0.00010273,2]
[348478201,1736557846101,-323.37220896,0.00010273,2]
[348478203,1736557846111,-500.0,0.00010273,2]
[348478205,1736557846121,-500.0,0.00010273,2]
[348478207,1736557846130,-1046.11,0.00010273,2]
[348478209,1736557846139,-1511.96,0.00010273,2]
[348478211,1736557846148,-500.0,0.00010273,2]
[348478213,1736557846158,-1071.3,0.00010273,2]
[348478215,1736557846167,-500.0,0.00010273,2]
[348478217,1736557846176,-2138.11,0.00010273,2]
[348478219,1736557846187,-864.38,0.00010273,2]
[348478221,1736557846197,-394.94945206,0.00010273,2]
[348478223,1736557846206,-2746.89,0.00010273,2]
[348478225,1736557846215,-500.0,0.00010273,2]
[348478227,1736557846225,-1515.65,0.00010273,2]
[348478229,1736557846234,-1158.06,0.00010273,2]
[348478231,1736557846244,-500.0,0.00010273,2]
[348478233,1736557846254,-1040.54,0.00010273,2]
[348478235,1736557846263,-2740.46,0.00010273,2]
[348478237,1736557846272,-2384.25,0.00010273,2]
[348478239,1736557846281,-2824.35,0.00010273,2]
[348478241,1736557846290,-658.38,0.00010273,2]
[348478243,1736557846300,-500.0,0.00010273,2]
[348478245,1736557846309,-1031.95,0.00010273,2]
[348478247,1736557846318,-500.0,0.00010273,2]
[348478249,1736557846327,-2218.44,0.00010273,2]
[348478251,1736557846337,-584.84,0.00010273,2]
[348478253,1736557846346,-500.05,0.00010273,2]
[348478255,1736557846355,-2919.91,0.00010273,2]
[348478257,1736557846365,-500.0,0.00010273,2]
[348478259,1736557846374,-2641.79,0.00010273,2]
[348478261,1736557846384,-807.052258,0.00010273,2]
[348478263,1736557846393,-500.0,0.00010273,2]
[348478265,1736557846402,-865.0,0.00010273,2]
[348478267,1736557846412,-500.0,0.00010273,2]
[348478269,1736557846421,-688.83,0.00010273,2]
[348478271,1736557846432,-1064.0,0.00010273,2]
[348478272,1736557846441,-500.0,0.00010273,2]
[348478274,1736557846451,-1192.04,0.00010273,2]
[348478276,1736557846461,-500.0,0.00010273,2]
[348478278,1736557846471,-500.0,0.00010273,2]
[348478281,1736557846481,-516.01,0.00010273,2]
[348478282,1736557846492,-500.0,0.00010273,2]
[348478284,1736557846505,-543.6747689,0.00010273,2]
[348478286,1736557846514,-500.0,0.00010273,2]
[348478288,1736557846523,-684.774458,0.00010273,2]
[348478290,1736557846532,-1285.61,0.00010273,2]
[348478292,1736557846541,-1025.13,0.00010273,2]
[348478294,1736557846551,-2275.73,0.00010273,2]
[348478296,1736557846560,-500.0,0.00010273,2]
[348478298,1736557846570,-201.71683218,0.00010273,2]
[348478300,1736557846579,-500.0,0.00010273,2]
[348478302,1736557846589,-500.0,0.00010273,2]
[348478304,1736557846598,-500.0,0.00010273,2]
[348478306,1736557846608,-2057.4,0.00010273,2]
[348478308,1736557846618,-1336.76,0.00010273,2]
[348478310,1736557846628,-500.0,0.00010273,2]
[348478312,1736557846638,-747.45,0.00010273,2]
[348478314,1736557846648,-500.0,0.00010273,2]
[348478316,1736557846658,-500.0,0.00010273,2]
[348478318,1736557846667,-158.17,0.00010273,2]
[348478320,1736557846677,-1758.19,0.00010273,2]
[348478322,1736557846687,-365.0,0.000103,2]
[348478324,1736557846696,-1000.0,0.000103,2]
[348478326,1736557846707,-231.0,0.000103,2]
[348478328,1736557846717,-1000.0,0.00010309,2]
[348478330,1736557846726,-1000.0,0.000104,2]
[348478332,1736557846736,-226.013,0.0001041,2]
[348478334,1736557846746,-731.16,0.00010444,2]
[348478336,1736557846756,-545.81083584,0.00010447,2]
[348478338,1736557846765,-1000.0,0.000105,2]
[348478340,1736557846775,-500.0,0.00010521,2]
[348478342,1736557846787,-500.0,0.00010544,2]
[348478344,1736557846796,-500.0,0.00010545,2]
[348478346,1736557846806,-500.0,0.00010545,2]
[348478348,1736557846816,-1602.4,0.00010545,2]
[348478350,1736557846827,-533.25532281,0.00010545,2]
[348478352,1736557846836,-500.0,0.00010545,2]
[348478354,1736557846846,-884.12,0.00010545,2]
[348478356,1736557846855,-500.0,0.00010545,2]
[348478358,1736557846866,-749.81,0.00010545,2]
[348478360,1736557846875,-500.0,0.00010545,2]
[348478362,1736557846885,-1000.0,0.00010545,2]
[348478364,1736557846894,-500.0,0.00010545,2]
[348478366,1736557846903,-500.0,0.00010545,2]
[348478368,1736557846913,-1316.67,0.00010545,2]
[348478370,1736557846922,-639.0,0.00010546,2]
[348478372,1736557846931,-500.0,0.00010547,2]
[348478374,1736557846940,-500.0,0.00010547,2]
[348478376,1736557846950,-500.0,0.00010547,2]
[348478378,1736557846960,-500.0,0.00010547,2]
[348478380,1736557846969,-500.0,0.00010547,2]
[348478382,1736557846979,-500.0,0.00010547,2]
[348478384,1736557846989,-500.0,0.00010547,2]
[348478386,1736557846998,-500.0,0.00010547,2]
[348478388,1736557847008,-500.0,0.00010547,2]
[348478390,1736557847018,-500.0,0.00010547,2]
[348478392,1736557847027,-500.0,0.00010547,2]
[348478394,1736557847037,-500.0,0.00010547,2]
[348478396,1736557847047,-500.0,0.00010547,2]
[348478398,1736557847057,-400.70555087,0.00010547,2]
[348478400,1736557847067,-500.0,0.00010547,2]
[348478402,1736557847077,-500.0,0.00010547,2]
[348478404,1736557847086,-500.0,0.00010547,2]
[348478406,1736557847096,-500.0,0.00010547,2]
[348478408,1736557847106,-2541.25,0.00010547,2]
[348478410,1736557847115,-512.94,0.00010547,2]
[348478412,1736557847126,-500.0,0.00010547,2]
[348478414,1736557847136,-529.15,0.00010547,2]
[348478416,1736557847145,-546.84,0.00010547,2]
[348478418,1736557847155,-500.0,0.00010547,2]
[348478420,1736557847164,-566.33,0.00010547,2]
[348478422,1736557847173,-564.22,0.00010547,2]
[348478424,1736557847182,-988.02,0.00010547,2]
[348478426,1736557847192,-500.0,0.00010547,2]
[348478428,1736557847202,-663.69,0.00010547,2]
[348478430,1736557847211,-664.28,0.00010547,2]
[348478432,1736557847220,-500.0,0.00010547,2]
[348478434,1736557847229,-500.0,0.00010547,2]
[348478436,1736557847239,-500.0,0.00010547,2]
[348478438,1736557847248,-1003.07,0.00010547,2]
[348478440,1736557847257,-631.4,0.00010547,2]
[348478442,1736557847267,-500.0,0.00010547,2]
[348478444,1736557847277,-500.0,0.00010547,2]
[348478446,1736557847286,-603.77,0.00010547,2]
[348478447,1736557847295,-500.0,0.00010547,2]
[348478448,1736557847306,-717.92,0.00010547,2]
[348478449,1736557847315,-500.0,0.00010547,2]
[348478450,1736557847325,-500.0,0.00010547,2]
[348478451,1736557847334,-500.0,0.00010547,2]
[348478452,1736557847343,-500.0,0.00010547,2]
[348478453,1736557847353,-500.0,0.00010547,2]
[348478454,1736557847545,-500.0,0.00010547,2]
[348478455,1736557847555,-500.0,0.00010547,2]
[348478456,1736557847565,-558.16,0.00010547,2]
[348478457,1736557847575,-500.0,0.00010547,2]
[348478458,1736557847585,-500.0,0.00010547,2]
[348478459,1736557847594,-500.0,0.00010547,2]
[348478460,1736557847604,-1450.58,0.00010547,2]
[348478461,1736557847614,-500.0,0.00010547,2]
[348478462,1736557847623,-500.0,0.00010547,2]
[348478463,1736557847632,-500.0,0.00010547,2]
[348478464,1736557847641,-500.0,0.00010547,2]
[348478465,1736557847651,-2637.97,0.00010547,2]
[348478466,1736557847660,-500.0,0.00010547,2]
[348478467,1736557847669,-500.0,0.00010547,2]
[348478468,1736557847679,-500.0,0.00010547,2]
[348478469,1736557847688,-500.0,0.00010547,2]
[348478470,1736557847698,-939.56,0.00010547,2]
[348478471,1736557847708,-500.0,0.00010547,2]
[348478472,1736557847718,-500.0,0.00010547,2]
[348478473,1736557847730,-202.69991986,0.00010547,2]
[348478474,1736557847740,-500.0,0.00010547,2]
[348478475,1736557847750,-742.24,0.00010547,2]
[348478476,1736557847760,-882.41,0.00010547,2]
[348478477,1736557847769,-502.54,0.00010547,2]
[348478478,1736557847780,-500.0,0.00010547,2]
[348478479,1736557847790,-500.0,0.00010547,2]
[348478480,1736557847799,-1328.54,0.00010547,2]
[348478481,1736557847809,-531.65,0.00010547,2]
[348478482,1736557847819,-500.0,0.00010547,2]
[348478483,1736557847828,-521.61,0.00010547,2]
[348478484,1736557847837,-570.23,0.00010547,2]
[348478485,1736557847847,-669.9,0.00010547,2]
[348478486,1736557847857,-500.0,0.00010547,2]
[348478487,1736557847866,-500.0,0.00010547,2]
[348478488,1736557847875,-500.0,0.00010547,2]
[348478489,1736557847885,-1727.8,0.00010547,2]
[348478490,1736557847895,-832.85,0.00010547,2]
[348478491,1736557847904,-500.0,0.00010547,2]
[348478492,1736557847913,-500.0,0.00010547,2]
[348478493,1736557847923,-3854.35,0.00010547,2]
[348478494,1736557847933,-500.0,0.00010547,2]
[348478495,1736557847943,-500.0,0.00010547,2]
[348478496,1736557847955,-500.0,0.00010547,2]
[348478497,1736557847966,-577.07830859,0.00010547,2]
[348478498,1736557847976,-500.0,0.00010547,2]
[348478499,1736557847988,-500.0,0.00010547,2]
[348478500,1736557847998,-499.33281469,0.00010547,2]
[348478501,1736557848007,-500.0,0.00010547,2]
[348478502,1736557848017,-500.0,0.00010547,2]
[348478503,1736557848026,-500.0,0.00010547,2]
[348478504,1736557848036,-524.62,0.00010547,2]
[348478505,1736557848045,-514.69,0.00010547,2]
[348478506,1736557848055,-778.85,0.00010547,2]
[348478507,1736557848065,-500.0,0.00010547,2]
[348478508,1736557848075,-500.0,0.00010547,2]
[348478509,1736557848085,-1099.04,0.00010547,2]
[348478510,1736557848095,-1177.86,0.00010547,2]
[348478511,1736557848104,-500.0,0.00010547,2]
[348478512,1736557848114,-1535.8,0.00010547,2]
[348478513,1736557848124,-500.0,0.00010547,2]
[348478514,1736557848133,-2814.65,0.00010547,2]
[348478515,1736557848143,-500.0,0.00010547,2]
[348478516,1736557848153,-961.8,0.00010547,2]
[348478517,1736557848163,-719.2,0.00010547,2]
[348478518,1736557848173,-500.0,0.00010547,2]
[348478519,1736557848183,-1194.13,0.00010547,2]
[348478520,1736557848193,-1091.95,0.00010547,2]
[348478521,1736557848202,-2542.34,0.00010547,2]
[348478522,1736557848212,-500.0,0.00010547,2]
[348478523,1736557848222,-500.0,0.00010547,2]
[348478524,1736557848231,-750.07,0.00010547,2]
[348478525,1736557848241,-500.0,0.00010547,2]
[348478526,1736557848251,-1945.88,0.00010547,2]
[348478527,1736557848260,-2417.55,0.00010547,2]
[348478528,1736557848270,-1209.3,0.00010547,2]
[348478529,1736557848280,-500.0,0.00010547,2]
[348478530,1736557848289,-1511.96,0.00010547,2]
[348478531,1736557848299,-1046.11,0.00010547,2]
[348478532,1736557848309,-500.0,0.00010547,2]
[348478533,1736557848319,-1071.3,0.00010547,2]
[348478534,1736557848329,-500.0,0.00010547,2]
[348478535,1736557848339,-2138.11,0.00010547,2]
[348478536,1736557848350,-864.38,0.00010547,2]
[348478537,1736557848359,-2746.89,0.00010547,2]
[348478538,1736557848370,-500.0,0.00010547,2]
[348478539,1736557848379,-1515.65,0.00010547,2]
[348478540,1736557848389,-1158.06,0.00010547,2]
[348478541,1736557848399,-336.50420754,0.00010547,2]
[348478542,1736557848408,-1040.54,0.00010547,2]
[348478543,1736557848418,-2740.46,0.00010547,2]
[348478544,1736557848427,-2384.25,0.00010547,2]
[348478545,1736557848437,-2824.35,0.00010547,2]
[348478546,1736557848447,-658.38,0.00010547,2]
[348478547,1736557848457,-500.0,0.00010547,2]
[348478548,1736557848467,-1031.95,0.00010547,2]
[348478549,1736557848476,-500.0,0.00010547,2]
[348478550,1736557848486,-2218.44,0.00010547,2]
[348478551,1736557848498,-584.84,0.00010547,2]
[348478552,1736557848508,-500.05,0.00010547,2]
[348478553,1736557848518,-2919.91,0.00010547,2]
[348478554,1736557848529,-500.0,0.00010547,2]
[348478555,1736557848538,-2641.79,0.00010547,2]
[348478556,1736557848548,-807.052258,0.00010547,2]
[348478557,1736557848557,-500.0,0.00010547,2]
[348478558,1736557848567,-500.0,0.00010547,2]
[348478559,1736557848577,-865.0,0.00010547,2]
[348478560,1736557848586,-688.83,0.00010547,2]
[348478561,1736557848596,-1064.0,0.00010547,2]
[348478562,1736557848605,-500.0,0.00010547,2]
[348478563,1736557848615,-1192.04,0.00010547,2]
[348478564,1736557848624,-500.0,0.00010547,2]
[348478565,1736557848634,-516.01,0.00010547,2]
[348478566,1736557848644,-500.0,0.00010547,2]
[348478567,1736557848653,-500.0,0.00010547,2]
[348478568,1736557848663,-500.0,0.00010547,2]
[348478569,1736557848673,-684.774458,0.00010547,2]
[348478570,1736557848683,-1285.61,0.00010547,2]
[348478571,1736557848692,-2275.73,0.00010547,2]
[348478572,1736557848702,-1025.13,0.00010547,2]
[348478573,1736557848711,-382.27236371,0.00010547,2]
[348478574,1736557848721,-500.0,0.00010547,2]
[348478575,1736557848731,-500.0,0.00010547,2]
[348478576,1736557848741,-500.0,0.00010547,2]
[348478577,1736557848750,-1336.76,0.00010547,2]
[348478578,1736557848760,-2057.4,0.00010547,2]
[348478579,1736557848770,-602.97976846,0.00010547,2]
[348478580,1736557848779,-747.45,0.00010547,2]
[348478581,1736557848788,-500.0,0.00010547,2]
[348478582,1736557848798,-500.0,0.00010547,2]
[348478583,1736557848807,-1758.19,0.00010547,2]
[348478584,1736557848817,-639.0,0.00010573,2]
[348478585,1736557848827,-1000.0,0.000106,2]
[348478586,1736557848836,-639.0,0.00010601,2]
[348478587,1736557848846,-529.03,0.00010616,2]
[348478588,1736557848855,-150.0,0.00010616,2]
[348478589,1736557848864,-639.0,0.00010628,2]
[348478590,1736557848873,-150.0,0.00010634,2]
[348478591,1736557848883,-150.0,0.00010636,2]
[348478592,1736557848892,-639.0,0.00010656,2]
[348478593,1736557848902,-150.0,0.0001067,2]
[348478594,1736557848911,-150.0,0.00010672,2]
[348478595,1736557848921,-150.0,0.00010677,2]
[348478596,1736557848931,-150.0,0.00010678,2]
[348478597,1736557848941,-639.0,0.00010683,2]
[348478598,1736557848950,-1500.0,0.00010686,2]
[348478599,1736557848960,-150.0,0.00010689,2]
[348478600,1736557848970,-150.0,0.0001069,2]
[348478601,1736557848980,-150.0,0.00010694,2]
[348478602,1736557848990,-1000.0,0.000107,2]
[348478603,1736557848999,-186.294,0.00010703,2]
[348478604,1736557849009,-817.0,0.00010703,2]
[348478605,1736557849020,-668.569,0.00010703,2]
[348478606,1736557849029,-2944.0,0.00010703,2]
[348478607,1736557849039,-1259.0,0.00010703,2]
[348478608,1736557849048,-524.429,0.00010703,2]
[348478609,1736557849058,-176.638,0.00010703,2]
[348478610,1736557849068,-3896.0,0.00010703,2]
[348478611,1736557849078,-150.0,0.00010703,2]
[348478612,1736557849088,-1173.0,0.00010703,2]
[348478613,1736557849098,-9621.0,0.00010703,2]
[348478614,1736557849108,-639.0,0.0001071,2]
[348478615,1736557849118,-150.0,0.00010711,2]
[348478616,1736557849128,-150.0,0.00010712,2]
[348478617,1736557849137,-150.0,0.00010716,2]
[348478618,1736557849147,-150.0,0.00010717,2]
[348478619,1736557849156,-150.0,0.00010734,2]
[348478620,1736557849166,-639.0,0.00010738,2]
[348478621,1736557849175,-150.0,0.00010741,2]
[348478622,1736557849185,-150.0,0.00010745,2]
[348478623,1736557849194,-1500.0,0.00010749,2]
[348478624,1736557849204,-150.0,0.00010752,2]
[348478625,1736557849215,-806.4637249,0.00010757,2]
[348478626,1736557849225,-500.0,0.00010758,2]
[348478627,1736557849234,-150.0,0.00010761,2]
[348478628,1736557849244,-639.0,0.00010765,2]
[348478629,1736557849254,-150.0,0.0001077,2]
[348478630,1736557849263,-150.0,0.00010775,2]
[348478631,1736557849272,-1500.0,0.00010786,2]
[348478632,1736557849281,-150.0,0.00010788,2]
[348478633,1736557849291,-150.0,0.00010788,2]
[348478634,1736557849300,-150.0,0.00010789,2]
[348478635,1736557849310,-150.0,0.00010789,2]
[348478636,1736557849319,-639.0,0.00010793,2]
[348478637,1736557849329,-150.0,0.00010798,2]
[348478638,1736557849338,-150.0,0.00010799,2]
[348478639,1736557849348,-4148.571383,0.000108,2]
[348478640,1736557849358,-150.0,0.00010808,2]
[348478641,1736557849368,-150.0,0.00010813,2]
[348478642,1736557849378,-500.0,0.00010819,2]
[348478643,1736557849388,-500.0,0.00010819,2]
[348478644,1736557849398,-1602.4,0.00010819,2]
[348478645,1736557849407,-500.0,0.00010819,2]
[348478646,1736557849417,-884.12,0.00010819,2]
[348478647,1736557849426,-500.0,0.00010819,2]
[348478648,1736557849436,-749.81,0.00010819,2]
[348478649,1736557849445,-500.0,0.00010819,2]
[348478650,1736557849454,-889.48608853,0.00010819,2]
[348478651,1736557849465,-500.0,0.00010819,2]
[348478652,1736557849475,-500.0,0.00010819,2]
[348478653,1736557849484,-1316.67,0.00010819,2]
[348478654,1736557849497,-500.0,0.00010819,2]
[348478655,1736557849507,-639.0,0.0001082,2]
[348478656,1736557849517,-500.0,0.00010821,2]
[348478657,1736557849526,-500.0,0.00010821,2]
[348478658,1736557849537,-500.0,0.00010821,2]
[348478659,1736557849546,-500.0,0.00010821,2]
[348478660,1736557849556,-500.0,0.00010821,2]
[348478661,1736557849566,-509.9,0.00010821,2]
[348478662,1736557849576,-500.0,0.00010821,2]
[348478663,1736557849585,-500.0,0.00010821,2]
[348478664,1736557849595,-500.0,0.00010821,2]
[348478665,1736557849604,-500.0,0.00010821,2]
[348478666,1736557849614,-500.0,0.00010821,2]
[348478667,1736557849623,-500.0,0.00010821,2]
[348478668,1736557849632,-500.0,0.00010821,2]
[348478669,1736557849642,-500.0,0.00010821,2]
[348478670,1736557849651,-500.0,0.00010821,2]
[348478671,1736557849661,-500.0,0.00010821,2]
[348478672,1736557849670,-500.0,0.00010821,2]
[348478673,1736557849679,-2541.25,0.00010821,2]
[348478674,1736557849689,-512.94,0.00010821,2]
[348478675,1736557849698,-500.0,0.00010821,2]
[348478676,1736557849707,-529.15,0.00010821,2]
[348478677,1736557849717,-546.84,0.00010821,2]
[348478678,1736557849726,-500.0,0.00010821,2]
[348478679,1736557849735,-564.22,0.00010821,2]
[348478680,1736557849744,-988.02,0.00010821,2]
[348478681,1736557849754,-500.0,0.00010821,2]
[348478682,1736557849763,-663.69,0.00010821,2]
[348478683,1736557849773,-664.28,0.00010821,2]
[348478684,1736557849784,-500.0,0.00010821,2]
[348478685,1736557849794,-159.69,0.00010821,2]
[348478686,1736557849805,-500.0,0.00010821,2]
[348478687,1736557849815,-1003.07,0.00010821,2]
[348478688,1736557849826,-631.4,0.00010821,2]
[348478689,1736557849835,-500.0,0.00010821,2]
[348478690,1736557849845,-500.0,0.00010821,2]
[348478691,1736557849854,-603.77,0.00010821,2]